fUSD/lending_fUSD_20251211
["ID","MTS","AMOUNT","RATE_DAILY","PERIOD"]
[398246447,1765456185912,-1068.11302032,0.00015599,2]
[398246448,1765456186579,-10000.01,0.00015599,2]
[398246449,1765456186733,-10000.01,0.00015599,2]
[398246450,1765456186839,-10000.01,0.00015599,2]
[398246451,1765456186973,-10000.01,0.00015599,2]
[398246452,1765456187116,-10000.01,0.00015599,2]
[398246453,1765456187232,-10000.01,0.00015599,2]
[398246454,1765456187348,-10000.01,0.00015599,2]
[398246455,1765456191883,-10000.01,0.00015599,2]
[398246456,1765456191987,-10000.01,0.00015599,2]
[398246457,1765456198995,-10000.01,0.00015599,2]
[398246458,1765456199150,-10000.01,0.00015599,2]
[398246459,1765456205803,-300.0,0.00015598,2]
[398246460,1765456205834,-1200.0,0.00015598,2]
[398246461,1765456205895,-7000.01,0.00015599,2]
[398246462,1765456205935,-10000.01,0.00015599,2]
[398246463,1765456206697,-221.5,0.00015589,2]
[398246464,1765456206727,-29.33833018,0.00015599,2]
[398246465,1765456209997,-10000.01,0.00015599,2]
[398246466,1765456210215,-10000.01,0.00015599,2]
[398246467,1765456210329,-10000.01,0.00015599,2]
[398246468,1765456210455,-10000.01,0.00015599,2]
[398246469,1765456210573,-10000.01,0.00015599,2]
[398246470,1765456210698,-10000.01,0.00015599,2]
[398246471,1765456210819,-10000.01,0.00015599,2]
[398246472,1765456217148,-10000.01,0.00015599,2]
[398246473,1765456217272,-10000.01,0.00015599,2]
[398246474,1765456217391,-10000.01,0.00015599,2]
[398246475,1765456217639,-10000.01,0.00015599,2]
[398246476,1765456217749,-10000.01,0.00015599,2]
[398246477,1765456217867,-10000.01,0.00015599,2]
[398246478,1765456217986,-10000.01,0.00015599,2]
[398246479,1765456218097,-10000.01,0.00015599,2]
[398246480,1765456223630,-150.0,0.00015405,2]
[398246481,1765456223663,-188.92226842,0.00015499,2]
[398246482,1765456223734,-9322.16546316,0.00015599,2]
[398246483,1765456231574,-10000.01,0.00015599,2]
[398246494,1765456232241,-1650.0,0.00015599,2]
[398246499,1765456232297,-279.26125715,0.00015599,2]
[398246501,1765456232313,-2288.5120478,0.00015599,2]
[398246503,1765456232354,-19424.49101188,0.00015599,2]
[398246504,1765456232367,-23451.11611488,0.00015599,2]
[398246505,1765456232380,-811.64281846,0.00015599,2]
[398246506,1765456232411,-54012.96053617,0.00015599,2]
[398246507,1765456232425,-4090.5884,0.00015599,2]
[398246508,1765456232436,-243.4844,0.00015599,2]
[398246509,1765456232453,-16198.57066665,0.00015599,2]
[398246510,1765456232466,-280.0,0.00015599,2]
[398246511,1765456232479,-300.0,0.00015622,2]
[398246512,1765456232492,-195.0,0.00015644,2]
[398246513,1765456232505,-250.0,0.00015644,2]
[398246514,1765456232517,-391.20555727,0.00015666,2]
[398246515,1765456232530,-200.0,0.00015689,2]
[398246516,1765456232541,-151.0,0.00015689,2]
[398246517,1765456232553,-200.0,0.00015689,2]
[398246518,1765456232566,-500.0,0.00015689,2]
[398246519,1765456232579,-151.0,0.00015689,2]
[398246520,1765456232591,-500.0,0.00015689,2]
[398246521,1765456232603,-151.0,0.00015689,2]
[398246522,1765456232616,-500.0,0.00015689,2]
[398246523,1765456232629,-151.0,0.00015689,2]
[398246524,1765456232641,-500.0,0.00015689,2]
[398246526,1765456232653,-500.0,0.00015689,2]
[398246528,1765456232669,-500.0,0.00015689,2]
[398246529,1765456232686,-209.1215884,0.00015689,2]
[398246530,1765456232700,-151.0,0.00015689,2]
[398246532,1765456232713,-151.0,0.00015689,2]
[398246533,1765456232724,-151.0,0.00015689,2]
[398246534,1765456232735,-151.0,0.00015689,2]
[398246535,1765456232745,-151.0,0.00015689,2]
[398246536,1765456232755,-151.0,0.00015689,2]
[398246537,1765456232767,-151.0,0.00015689,2]
[398246538,1765456232778,-151.0,0.00015689,2]
[398246539,1765456232791,-151.0,0.00015689,2]
[398246540,1765456232804,-500.0,0.00015689,2]
[398246541,1765456232816,-508.77668287,0.00015698,2]
[398246542,1765456232826,-500.0,0.00015698,2]
[398246543,1765456232836,-648.81,0.00015698,2]
[398246544,1765456232846,-1000.0,0.00015699,2]
[398246545,1765456232857,-200.0,0.00015699,2]
[398246546,1765456232869,-7806.94730115,0.00015766,2]
[398246547,1765456232883,-2109.64631498,0.00015766,2]
[398246548,1765456232895,-1306.26217366,0.00015766,2]
[398246549,1765456232905,-374.22148136,0.00015798,2]
[398246550,1765456232915,-500.0,0.00015798,2]
[398246551,1765456232935,-219.51634498,0.00015798,2]
[398246552,1765456232949,-280.48365502,0.00015798,2]
[398246553,1765456232960,-519.51634498,0.00015807,2]
[398246554,1765456236403,279.48975248,0.00015598,2]
[398246556,1765456238352,-1706.65284751,0.00015807,2]
[398246557,1765456238361,-200.0,0.00015856,2]
[398246558,1765456238371,-166.67,0.00015867,2]
[398246559,1765456238380,-1000.0,0.00015999,3]
[398246560,1765456238389,-421.47863753,0.00015999,2]
[398246561,1765456238398,-25863.30089093,0.00016,2]
[398246562,1765456238414,-500.0,0.00016,2]
[398246563,1765456238426,-14335.81223881,0.00016,2]
[398246564,1765456238439,-12533.44653216,0.00016,2]
[398246565,1765456238451,-200.0,0.00016015,2]
[398246566,1765456238460,-2089.76861356,0.00016033,2]
[398246567,1765456238471,-304.0,0.00016033,2]
[398246568,1765456238486,-1641.97699232,0.00016033,2]
[398246576,1765456240389,-500.0,0.00016033,2]
[398246577,1765456240400,-6687.11018391,0.00016033,2]
[398246578,1765456240409,-13629.62,0.00016141,2]
[398246579,1765456240418,-200.0,0.00016175,2]
[398246580,1765456240427,-5000.00357017,0.000162,5]
[398246581,1765456240436,-11222.85578979,0.00016299,2]
[398246582,1765456240445,-200.0,0.00016336,2]
[398246583,1765456240454,-648.81,0.00016401,2]
[398246584,1765456240462,-13045.71,0.00016401,2]
[398246585,1765456240471,-325.3,0.00016438,2]
[398246586,1765456240480,-500.0,0.00016438,2]
[398246587,1765456240488,-500.0,0.00016438,2]
[398246588,1765456240497,-500.0,0.00016438,2]
[398246589,1765456240506,-500.0,0.00016438,2]
[398246590,1765456240514,-500.0,0.00016438,2]
[398246591,1765456240523,-500.0,0.00016438,2]
[398246592,1765456240532,-500.0,0.00016438,2]
[398246593,1765456240542,-500.0,0.00016438,2]
[398246594,1765456240550,-500.0,0.00016438,2]
[398246595,1765456240560,-500.0,0.00016438,2]
[398246596,1765456240568,-500.0,0.00016438,2]
[398246597,1765456240577,-500.0,0.00016438,2]
[398246598,1765456240586,-500.0,0.00016438,2]
[398246599,1765456240595,-500.0,0.00016438,2]
[398246600,1765456240604,-500.0,0.00016438,2]
[398246601,1765456240613,-500.0,0.00016438,2]
[398246602,1765456240623,-500.0,0.00016438,2]
[398246603,1765456240632,-500.0,0.00016438,2]
[398246604,1765456240640,-500.0,0.00016438,2]
[398246605,1765456240649,-500.0,0.00016438,2]
[398246606,1765456240658,-500.0,0.00016438,2]
[398246607,1765456240667,-500.0,0.00016438,2]
[398246608,1765456240676,-500.0,0.00016438,2]
[398246609,1765456240685,-189.7529666,0.00016438,2]
[398246610,1765456240694,-500.0,0.00016438,2]
[398246611,1765456240703,-500.0,0.00016438,2]
[398246612,1765456240712,-500.0,0.00016438,2]
[398246613,1765456240722,-11222.85578979,0.00016566,2]
[398246614,1765456240732,-500.0,0.0001663,2]
[398246615,1765456240741,-200.0,0.00016638,2]
[398246616,1765456240752,-325.3,0.00016712,2]
[398246617,1765456240761,-168.27,0.00016712,2]
[398246618,1765456240771,-166.67,0.0001674,2]
[398246619,1765456240781,-300.0,0.00016772,2]
[398246620,1765456240792,-151.42837888,0.00016772,2]
[398246621,1765456240801,-250.0,0.00016772,2]
[398246622,1765456240810,-250.0,0.00016772,2]
[398246623,1765456240819,-250.0,0.00016772,2]
[398246624,1765456240829,-250.0,0.00016772,2]
[398246625,1765456240838,-250.0,0.00016772,2]
[398246626,1765456240847,-250.0,0.00016772,2]
[398246627,1765456240858,-250.0,0.00016772,2]
[398246628,1765456240868,-250.0,0.00016772,2]
[398246629,1765456240877,-500.0,0.00016772,2]
[398246630,1765456240887,-500.0,0.00016772,2]
[398246631,1765456240897,-500.0,0.00016772,2]
[398246632,1765456240907,-500.0,0.00016772,2]
[398246633,1765456240916,-500.0,0.00016772,2]
[398246634,1765456240925,-1811.0,0.00016772,2]
[398246635,1765456240933,-500.0,0.00016772,2]
[398246636,1765456240942,-500.0,0.00016772,2]
[398246637,1765456240951,-151.0,0.00016772,2]
[398246638,1765456240960,-500.0,0.00016772,2]
[398246639,1765456240969,-500.0,0.00016772,2]
[398246640,1765456240978,-500.0,0.00016772,2]
[398246641,1765456240987,-500.0,0.00016772,2]
[398246642,1765456240997,-1599.0,0.00016772,2]
[398246643,1765456241006,-578.20924308,0.00016772,2]
[398246644,1765456241015,-200.0,0.00016772,2]
[398246645,1765456241024,-207.4,0.00016772,2]
[398246646,1765456241033,-215.0738,0.00016772,2]
[398246647,1765456241042,-223.0315306,0.00016772,2]
[398246648,1765456241051,-231.28369723,0.00016772,2]
[398246649,1765456241060,-239.84119403,0.00016772,2]
[398246650,1765456241069,-248.71531821,0.00016772,2]
[398246651,1765456241078,-257.91778498,0.00016772,2]
[398246652,1765456241086,-267.46074303,0.00016772,2]
[398246653,1765456241095,-277.35679052,0.00016772,2]
[398246654,1765456241104,-230.0,0.00016801,2]
[398246655,1765456241114,-11222.85578979,0.00016833,2]
[398246656,1765456241123,-500.0,0.00016899,2]
[398246657,1765456241134,-500.0,0.00016932,2]
[398246658,1765456241144,-279.0,0.00016973,2]
[398246659,1765456241152,-325.3,0.00016986,2]
[398246660,1765456241162,-835.75033429,0.0001699,2]
[398246661,1765456241170,-1000.0,0.00017,2]
[398246662,1765456241180,-387775.65794473,0.00017,2]
[398246663,1765456241191,-1000.0,0.00017,2]
[398246664,1765456241202,-2566.53259305,0.00017,2]
[398246665,1765456241214,-1087.32402358,0.00017,2]
[398246666,1765456241224,-11230.94247043,0.00017,2]
[398246667,1765456241235,-4467.40868573,0.00017,2]
[398246668,1765456241249,-6818.59551595,0.00017,2]
[398246669,1765456241260,-922.18333418,0.00017,2]
[398246670,1765456242975,-250.0,0.00017,2]
[398246671,1765456242985,-473.93335833,0.00017,2]
[398246672,1765456242996,-4933.99024006,0.00017,2]
[398246673,1765456243031,-2819.91904594,0.00017,2]
[398246722,1765456243753,-1.7e-07,0.00017,2]
[398246723,1765456243764,-310.06211086,0.00017,2]
[398246724,1765456243775,-301.089599,0.00017,2]
[398246725,1765456243789,-420.86114321,0.00017,2]
[398246726,1765456243800,-10494.69226872,0.00017,2]
[398246727,1765456243831,-512.6900035,0.00017,2]
[398246728,1765456243842,-393.39206397,0.00017,2]
[398246729,1765456243852,-2584.11823244,0.00017,2]
[398246730,1765456243866,-1797.61271401,0.00017,2]
[398246731,1765456243905,-22694.58088342,0.00017,2]
[398246732,1765456243924,-261.98000005,0.00017,2]
[398246733,1765456243935,-688.7483796,0.00017,2]
[398246734,1765456243985,-7260.33729988,0.00017,2]
[398246735,1765456244184,-653.98700519,0.00017,2]
[398246736,1765456246272,-1103.000005,0.00017,2]
[398246737,1765456246382,-1556.33307242,0.00017,2]
[398246738,1765456246439,-612.84989598,0.00017,2]
[398246739,1765456246450,-327.410967,0.00017,2]
[398246740,1765456246550,-379.12940536,0.00017,2]
[398246741,1765456246561,-6842.05043968,0.00017,2]
[398246743,1765456246758,-657.92929977,0.00017,2]
[398246744,1765456255004,500.0,0.00015499,2]
[398246745,1765456279430,1000.0,0.00015599,2]
[398246746,1765456282360,500.0,0.00015598,2]
[398246747,1765456282400,625.15337706,0.00015598,2]
[398246748,1765456282679,500.0,0.00015598,2]
[398246749,1765456282713,500.0,0.00015598,2]
[398246750,1765456282750,500.0,0.00015598,2]
[398246751,1765456282796,500.0,0.00015598,2]
[398246752,1765456282832,500.0,0.00015598,2]
[398246753,1765456282869,391.7311132,0.00015598,2]
[398246754,1765456290400,4203.63575726,0.00015599,2]
[398246755,1765456290430,10000.01,0.00015599,2]
[398246756,1765456290460,10000.01,0.00015599,2]
[398246757,1765456290488,10000.01,0.00015599,2]
[398246758,1765456290517,10000.01,0.00015599,2]
[398246759,1765456290545,10000.01,0.00015599,2]
[398246760,1765456290575,10000.01,0.00015599,2]
[398246761,1765456290603,10000.01,0.00015599,2]
[398246762,1765456290633,10000.01,0.00015599,2]
[398246763,1765456306305,-265.72199968,0.00015598,2]
[398246764,1765456306340,-9468.56600064,0.00015599,2]
[398246765,1765456306410,-10000.01,0.00015599,2]
[398246766,1765456306565,-10000.01,0.00015599,2]
[398246767,1765456306715,-10000.01,0.00015599,2]
[398246768,1765456306846,-10000.01,0.00015599,2]
[398246769,1765456306953,-10000.01,0.00015599,2]
[398246770,1765456307071,-10000.01,0.00015599,2]
[398246771,1765456307110,-902.0,0.00015599,2]
[398246772,1765456307220,-10000.01,0.00015599,2]
[398246777,1765456356531,515.83,0.00013699,2]
[398246778,1765456357956,-300.0,0.00015598,2]
[398246779,1765456357984,-148.96911321,0.00015599,2]
[398246780,1765456360307,-251.26617802,0.00015599,2]
[398246781,1765456363701,-165.50579755,0.00015599,2]
[398246782,1765456367557,-217.6618747,0.00015599,2]
[398246783,1765456368247,241.13941925,0.00015598,2]
[398246784,1765456368525,612.0530976,0.00015598,2]
[398246785,1765456369789,-261.29536241,0.00015599,2]
[398246786,1765456371955,-336.14794654,0.00015599,2]
[398246787,1765456374989,-275.19858083,0.00015599,2]
[398246788,1765456377739,-206.72992886,0.00015599,2]
[398246789,1765456379855,-216.55356462,0.00015599,2]
[398246790,1765456380010,650.0,0.00015598,2]
[398246791,1765456382371,300.0,0.00015598,2]
[398246792,1765456382402,-161.41503457,0.00015599,2]
[398246793,1765456383852,-440.70208798,0.00015599,2]
[398246794,1765456385884,-173.24110626,0.00015599,2]
[398246795,1765456388022,-206.64521273,0.00015599,2]
[398246796,1765456390088,-215.54766289,0.00015599,2]
[398246797,1765456391693,-171.07957278,0.00015599,2]
[398246798,1765456393641,-191.5009891,0.00015599,2]
[398246799,1765456395113,-458.03563488,0.00015599,2]
[398246800,1765456397289,-241.85908082,0.00015599,2]
[398246801,1765456399316,-295.28190259,0.00015599,2]
[398246802,1765456401860,-309.51961887,0.00015599,2]
[398246803,1765456405014,-500.0,0.00015599,2]
[398246804,1765456405189,500.0,0.00015499,2]
[398246805,1765456406597,-198.67438707,0.00015599,2]
[398246806,1765456409270,-231.90251636,0.00015599,2]
[398246807,1765456410757,-286.85221084,0.00015599,2]
[398246808,1765456412189,-500.0,0.00015599,2]
[398246809,1765456413893,-383.14394847,0.00015599,2]
[398246810,1765456415348,-246.49284026,0.00015599,2]
[398246811,1765456416938,-470.69694866,0.00015599,2]
[398246812,1765456419058,-294.40236244,0.00015599,2]
[398246813,1765456421161,-195.05741562,0.00015599,2]
[398246814,1765456423339,-311.49556018,0.00015599,2]
[398246815,1765456433122,-300.0,0.00015599,2]
[398246816,1765456437518,-209.5108101,0.00015599,2]
[398246817,1765456440644,-383.16556999,0.00015599,2]
[398246818,1765456442153,-298.42722782,0.00015599,2]
[398246819,1765456444519,-374.76939719,0.00015599,2]
[398246820,1765456446083,-213.56619461,0.00015599,2]
[398246821,1765456447630,-154.87400577,0.00015599,2]
[398246822,1765456449348,-177.77283939,0.00015599,2]
[398246823,1765456450848,-320.38557446,0.00015599,2]
[398246824,1765456452313,-223.87262596,0.00015599,2]
[398246825,1765456454401,-214.5697079,0.00015599,2]
[398246826,1765456456987,-188.25604568,0.00015599,2]
[398246827,1765456461020,-287.64933852,0.00015599,2]
[398246828,1765456462542,-161.36788,0.00015599,2]
[398246829,1765456464549,-379.91887995,0.00015599,2]
[398246830,1765456466706,-245.21085015,0.00015599,2]
[398246831,1765456478122,-334.01590842,0.00015599,2]
[398246832,1765456479706,-307.21926674,0.00015599,2]
[398246833,1765456481776,-496.07449058,0.00015599,2]
[398246834,1765456483974,-168.86440661,0.00015599,2]
[398246835,1765456485575,-174.30289042,0.00015599,2]
[398246836,1765456487788,-158.07078198,0.00015599,2]
[398246837,1765456489673,-276.69710958,0.00015599,2]
[398246838,1765456492241,-298.7627106,0.00015599,2]
[398246839,1765456495326,-283.58689795,0.00015599,2]
[398246840,1765456498058,-222.53374525,0.00015599,2]
[398246841,1765456501487,1200.0,0.00015598,2]
[398246842,1765456501519,300.0,0.00015598,2]
[398246843,1765456501767,-229.42469353,0.00015599,2]
[398246844,1765456503743,-431.48337384,0.00015599,2]
[398246845,1765456505816,-192.48517684,0.00015599,2]
[398246846,1765456507966,6196.81748315,0.00015499,2]
[398246847,1765456507991,938.67283895,0.00015499,2]
[398246848,1765456523133,-258.30466272,0.00015599,2]
[398246850,1765456526748,-355.45613029,0.00015599,2]
[398246851,1765456531073,-283.8772353,0.00015599,2]
[398246852,1765456533802,-166.66,0.00015599,2]
[398246853,1765456536041,-154.60721945,0.00015599,2]
[398246854,1765456539678,-165.13351929,0.00015599,2]
[398246855,1765456539893,9061.33716105,0.00015499,2]
[398246856,1765456539918,8311.15626982,0.00015499,2]
[398246857,1765456542275,-180.16924006,0.00015599,2]
[398246858,1765456544924,-250.0,0.00015599,2]
[398246859,1765456546928,-263.90658356,0.00015599,2]
[398246860,1765456548493,-188.28527227,0.00015599,2]
[398246861,1765456550584,-195.0,0.00015599,2]
[398246862,1765456552081,-302.0,0.00015599,2]
[398246863,1765456554327,-224.75548614,0.00015599,2]
[398246864,1765456556674,-344.6746493,0.00015499,2]
[398246865,1765456558822,-232.50447191,0.00015499,2]
[398246866,1765456561371,-253.92228725,0.00015499,2]
[398246867,1765456567078,-158.43239575,0.00015499,2]
[398246868,1765456570243,-269.84571679,0.00015499,2]
[398246869,1765456571779,-370.5641563,0.00015499,2]
[398246870,1765456573497,-133.95239145,0.00015499,2]
[398246871,1765456573519,-195.0,0.00015549,2]
[398246872,1765456573542,-30.39702492,0.00015589,2]
[398246873,1765456576620,-164.60297508,0.00015589,2]
[398246874,1765456576642,-78.01692445,0.00015598,2]
[398246875,1765456577026,-326.526,0.00015499,2]
[398246876,1765456577056,-71.98307555,0.00015598,2]
[398246877,1765456579209,-276.24303693,0.00015599,2]
[398246878,1765456582538,-241.16559574,0.00015599,2]
[398246879,1765456585865,-245.9663679,0.00015599,2]
[398246880,1765456588072,-343.84430181,0.00015599,2]
[398246881,1765456589660,-163.89385685,0.00015599,2]
[398246882,1765456591706,-316.31409948,0.00015599,2]
[398246883,1765456594421,-160.29275396,0.00015599,2]
[398246884,1765456596802,150.0,0.00015598,2]
[398246885,1765456597120,-311.31517888,0.00015599,2]
[398246886,1765456599681,-238.85102757,0.00015599,2]
[398246887,1765456601368,-358.7087369,0.00015599,2]
[398246888,1765456603047,-281.38617894,0.00015599,2]
[398246889,1765456605718,-324.18661081,0.00015599,2]
[398246890,1765456608149,-257.28454773,0.00015599,2]
[398246891,1765456611218,-195.46669605,0.00015599,2]
[398246892,1765456613412,-260.22822215,0.00015599,2]
[398246893,1765456614869,-500.0,0.00015599,2]
[398246894,1765456616423,-398.31182472,0.00015599,2]
[398246895,1765456618927,-291.14741247,0.00015599,2]
[398246896,1765456620966,-447.79589464,0.00015599,2]
[398246897,1765456623074,-300.65381628,0.00015599,2]
[398246898,1765456625701,-482.5116181,0.00015599,2]
[398246899,1765456632249,-166.959546,0.00015599,2]
[398246900,1765456634894,-201.50474477,0.00015599,2]
[398246901,1765456636339,-354.66765515,0.00015599,2]
[398246902,1765456638355,-240.92022172,0.00015599,2]
[398246903,1765456640013,-513.8056682,0.00015599,2]
[398246904,1765456641568,-154.48327391,0.00015599,2]
[398246905,1765456642507,304.53330395,0.00015598,2]
[398246906,1765456646502,-187.40482482,0.00015599,2]
[398246907,1765456648646,-176.22021998,0.00015599,2]
[398246908,1765456651451,-651.0,0.00015599,2]
[398246909,1765456653624,-210.45714246,0.00015599,2]
[398246910,1765456655577,-256.54985653,0.00015599,2]
[398246912,1765456657168,-320.72584505,0.00015599,2]
[398246914,1765456721304,870.55,0.00015555,2]
[398246915,1765456801282,300.0,0.00015598,2]
[398246916,1765456801530,1200.0,0.00015598,2]
[398246917,1765456807934,6377.90854495,0.00015589,2]
[398246918,1765456807957,143.63145505,0.00015589,2]
[398246919,1765456808481,6521.54,0.00015589,2]
[398246920,1765456817086,151.0,0.00015596,2]
[398246921,1765456817536,151.0,0.00015596,2]
[398246922,1765456817908,151.0,0.00015596,2]
[398246924,1765456840995,1543.40906013,0.00015499,2]
[398246925,1765456847331,1025.87,0.00015598,2]
[398246926,1765456847590,312.55948482,0.00015598,2]
[398246927,1765456847617,713.31051518,0.00015598,2]
[398246928,1765456861445,300.0,0.00015598,2]
[398246929,1765456894414,7391.48895945,0.00015499,2]
[398246930,1765456896254,166.66,0.00014747,2]
[398246931,1765456896708,166.66,0.00015057,2]
[398246932,1765456896745,1261.89052537,0.00015287,2]
[398246933,1765456896769,2081.55147463,0.00015287,2]
[398246934,1765456896807,170.909,0.00015287,2]
[398246935,1765456896837,166.66,0.00015367,2]
[398246937,1765456918244,393.26113051,0.00015499,2]
[398246938,1765456922287,300.0,0.00015598,2]
[398246939,1765456925115,200.0,0.00015599,2]
[398246945,1765456934341,500.0,0.00015599,2]
[398246946,1765456934480,151.0,0.00015599,2]
[398246947,1765456934967,500.0,0.00015599,2]
[398246948,1765456935141,151.0,0.00015599,2]
[398246949,1765456935540,500.0,0.00015599,2]
[398246950,1765456935571,242.25792744,0.00015599,2]
[398246951,1765456935792,151.0,0.00015599,2]
[398246952,1765456936165,500.0,0.00015599,2]
[398246953,1765456936414,151.0,0.00015599,2]
[398246954,1765456936861,500.0,0.00015599,2]
[398246955,1765456937192,151.0,0.00015599,2]
[398246956,1765456937576,500.0,0.00015599,2]
[398246957,1765456937911,151.0,0.00015599,2]
[398246958,1765456938323,500.0,0.00015599,2]
[398246959,1765456938547,151.0,0.00015599,2]
[398246960,1765456939246,151.0,0.00015599,2]
[398246961,1765456939893,151.0,0.00015599,2]
[398246962,1765456940518,151.0,0.00015599,2]
[398246963,1765456941381,151.0,0.00015599,2]
[398246964,1765456947496,537.6845,0.00015599,2]
[398246965,1765456948107,200.0,0.00015599,2]
[398246966,1765456956524,151.0,0.00015599,2]
[398246967,1765456957421,151.0,0.00015599,2]
[398246968,1765456958094,151.0,0.00015599,2]
[398246969,1765456958715,93.68596742,0.00015599,2]
[398246970,1765456958740,57.31403258,0.00015599,2]
[398246971,1765456959543,151.0,0.00015599,2]
[398246972,1765456960213,151.0,0.00015599,2]
[398246973,1765456960948,151.0,0.00015599,2]
[398246974,1765456961554,151.0,0.00015599,2]
[398246975,1765456962182,151.0,0.00015599,2]
[398246976,1765456962798,151.0,0.00015599,2]
[398246977,1765456963429,204.1206432,0.00015599,2]
[398246979,1765456980636,1200.0,0.00015598,2]
[398246980,1765456981324,300.0,0.00015598,2]
[398246981,1765457017361,1082.94,0.00025,120]
[398246982,1765457050185,7332.57532422,0.00015499,2]
[398246983,1765457050209,8302.66876359,0.00015499,2]
[398246984,1765457070028,-549.29,0.00024658,30]
[398246985,1765457095106,500.0,0.00015598,2]
[398246986,1765457095354,410.78,0.00015598,2]
[398246989,1765457101982,300.0,0.00015598,2]
[398246990,1765457102014,300.0,0.00015598,2]
[398246991,1765457102049,186.56123641,0.00015598,2]
[398246992,1765457102074,1013.43876359,0.00015598,2]
[398246993,1765457103161,300.0,0.00015598,2]
[398246994,1765457103679,250.0,0.0001559,2]
[398246995,1765457104421,150.0,0.00015411,2]
[398246996,1765457104453,150.0,0.00015518,2]
[398246997,1765457105772,150.0,0.00015411,2]
[398246998,1765457105813,150.0,0.0001547,2]
[398246999,1765457105897,150.0,0.00015588,2]
[398247000,1765457106778,150.0,0.00015529,2]
[398247001,1765457110391,150.0,0.00015411,2]
[398247002,1765457110432,150.0,0.00015543,2]
[398247003,1765457115497,150.0,0.00015411,2]
[398247004,1765457115552,150.0,0.00015456,2]
[398247005,1765457115621,150.0,0.00015501,2]
[398247006,1765457115652,150.0,0.00015546,2]
[398247007,1765457115717,150.0,0.00015591,2]
[398247008,1765457121271,1350.48292764,0.00015499,2]
[398247009,1765457126371,150.0,0.00015411,2]
[398247010,1765457126402,150.0,0.00015501,2]
[398247011,1765457126465,150.0,0.00015591,2]
[398247012,1765457128879,150.0,0.00015411,2]
[398247013,1765457128951,150.0,0.00015506,2]
[398247015,1765457130185,150.0,0.00015411,2]
[398247016,1765457130509,150.0,0.00015411,2]
[398247017,1765457130877,150.00000001,0.00015411,2]
[398247018,1765457131610,150.0,0.00015411,2]
[398247019,1765457133236,397.57367306,0.00015119,2]
[398247020,1765457137719,150.0,0.00015411,2]
[398247021,1765457138077,-293.49161705,0.00015599,2]
[398247022,1765457140121,-195.0,0.00015599,2]
[398247023,1765457140824,150.0,0.00015411,2]
[398247024,1765457141140,150.0,0.00015411,2]
[398247025,1765457141189,150.0,0.00015525,2]
[398247026,1765457143769,-205.66655264,0.00015599,2]
[398247027,1765457145293,-195.0,0.00015599,2]
[398247028,1765457161277,300.0,0.00015598,2]
[398247029,1765457216121,-4785.80185566,0.00015599,2]
[398247030,1765457223239,264.07,0.0001478,2]
[398247034,1765457280333,236.0,0.00015598,2]
[398247035,1765457280897,1988.4446357,0.00015499,2]
[398247036,1765457280919,7334.00307625,0.00015499,2]
[398247037,1765457282294,300.0,0.00015598,2]
[398247038,1765457318199,-271.0901929,0.00015599,2]
[398247039,1765457319186,250.0,0.00014792,2]
[398247040,1765457320343,-184.64389081,0.00015599,2]
[398247041,1765457321874,-308.68308584,0.00015599,2]
[398247042,1765457323417,-193.98161178,0.00015599,2]
[398247043,1765457325695,-41.60121867,0.00015599,2]